bitfinex/quotes_ETHUSD_20250414
["timestamp","ask_amount","ask_price","bid_price","bid_amount"]
[1744628804889,3.05,1678.4,1678.1,5.95888]
[1744628805091,5.95862,1678.3,1677.7,7.421]
[1744628805290,3.05,1678.4,1677.8,5.96013]
[1744628805492,3.0,1678.2,1677.7,7.421]
[1744628805702,6.76807,1677.8,1677.4,6.7794]
[1744628805856,6.76807,1677.8,1677.4,5.9616]
[1744628806060,6.76807,1677.8,1677.5,5.96123]
[1744628806502,12.72844,1677.8,1677.4,5.96147]
[1744628806699,6.76807,1677.8,1677.4,11.92295]
[1744628806916,6.76807,1677.8,1677.5,5.96119]
[1744628807194,0.8077,1677.8,1677.6,5.96056]
[1744628808196,6.76794,1677.8,1677.5,5.96121]
[1744628808496,0.8077,1677.8,1677.5,11.92233]
[1744628808696,0.8077,1677.8,1677.5,13.3080025]
[1744628809696,0.8077,1677.8,1677.4,1.934395]
[1744628809697,6.76792,1677.8,1677.4,7.895925]
[1744628809900,5.96068,1677.7,1677.4,5.96153]
[1744628810719,0.8077,1677.8,1677.5,5.96104]
[1744628811086,0.8077,1677.8,1677.5,11.92218]
[1744628811308,0.8077,1677.8,1677.5,5.96104]
[1744628812616,5.96069,1677.7,1677.4,5.96147]
[1744628812781,6.76802,1677.8,1677.5,5.96109]
[1744628812982,12.72842,1677.8,1677.5,5.96109]
[1744628813280,6.76802,1677.8,1677.5,5.96109]
[1744628813806,0.8077,1677.8,1677.5,11.92224]
[1744628814014,0.8077,1677.8,1677.6,5.96085]
[1744628814807,6.76801,1677.8,1677.5,7.153314]
[1744628815008,0.8077,1677.8,1677.5,13.114464]
[1744628815399,3.0,1677.9,1677.7,5.96054]
[1744628815578,7.422,1678.0,1677.8,5.95993]
[1744628815778,7.422,1678.0,1677.9,5.95983]
[1744628816080,3.0,1678.1,1677.9,5.95983]
[1744628817179,5.95937,1678.1,1677.7,11.92096]
[1744628817377,9.74177,1678.2,1677.7,1.275336]
[1744628817595,0.783,1678.2,1677.9,5.95948]
[1744628817827,0.783,1678.2,1678.0,5.95938]
[1744628818128,0.783,1678.2,1678.1,5.95912]
[1744628818423,0.783,1678.2,1678.0,5.95938]
[1744628819629,6.74195,1678.2,1677.8,5.96013]
[1744628819932,5.95914,1678.1,1677.8,5.96008]
[1744628820131,5.95914,1678.1,1677.8,11.92014]
[1744628820330,5.95998,1677.9,1677.5,7.153394]
[1744628820535,5.95998,1677.9,1677.4,0.8248]
[1744628820536,0.7612,1677.8,1677.4,0.8248]
[1744628820739,3.7612,1677.8,1676.9,8.2427]
[1744628820906,0.7612,1677.3,1677.0,0.12]
[1744628821256,0.7612,1677.3,1677.2,5.96231]
[1744628821414,7.41,1677.5,1677.2,1.192495]
[1744628821603,6.76371,1677.8,1677.5,5.96125]
[1744628821811,0.8035,1677.8,1677.7,5.96054]
[1744628822005,8.2135,1678.0,1677.6,5.96089]
[1744628822204,0.7779,1678.2,1677.9,5.95952]
[1744628822433,5.95947,1678.0,1677.7,5.96051]
[1744628822624,11.91859,1678.1,1677.7,11.9209]
[1744628822800,5.9595,1678.0,1677.6,5.96081]
[1744628823000,6.7885,1677.8,1677.4,13.37152]
[1744628823202,0.8282,1678.0,1677.8,5.95991]
[1744628823538,3.8282,1678.0,1677.7,11.92084]
[1744628824201,0.8282,1678.0,1677.8,5.95989]
[1744628824739,0.8282,1678.0,1677.9,5.95983]
[1744628824942,9.79198,1678.2,1677.9,5.95983]
[1744628825150,3.8331,1678.2,1677.9,5.9597]
[1744628825447,15.75082,1678.2,1677.9,5.9597]
[1744628825750,0.8331,1678.2,1677.8,5.96018]
[1744628825942,0.8331,1678.2,1677.9,6.55575]
[1744628826252,0.8331,1678.2,1677.9,6.55572]
[1744628826453,0.8331,1678.2,1677.9,5.95971]
[1744628826667,0.8331,1678.2,1677.7,5.96053]
[1744628826668,5.95934,1678.1,1677.7,5.96053]
[1744628826831,5.95951,1678.0,1677.6,5.96079]
[1744628827161,3.0,1678.0,1677.5,5.96109]
[1744628827314,0.8243,1677.8,1677.6,5.96079]
[1744628827518,0.8243,1677.8,1677.6,11.92156]
[1744628827747,0.8243,1677.8,1677.6,5.96077]
[1744628828253,0.8243,1677.8,1677.7,5.96054]
[1744628828453,0.8243,1677.8,1677.6,5.96077]
[1744628828454,6.17,1678.2,1678.0,5.95947]
[1744628828820,6.17,1678.2,1678.1,5.95912]
[1744628829246,0.05,1678.4,1678.3,5.95841]
[1744628829518,3.9e-06,1678.6,1678.5,5.9577]
[1744628829721,3.9e-06,1678.6,1678.5,21.2097656]
[1744628830340,3.90945648,1679.2,1679.1,5.95557]
[1744628830976,3.90945648,1679.2,1679.1,6.0151186]
[1744628831192,3.90945648,1679.2,1679.1,5.95557]
[1744628831477,3.90945648,1679.2,1679.1,6.01511843]
[1744628831649,3.90945648,1679.2,1679.1,5.95557]
[1744628832261,3.90945648,1679.2,1679.1,10.79523804]
[1744628832458,3.90945648,1679.2,1679.1,7.227324]
[1744628834194,6.48e-06,1679.2,1679.1,18.6916896]
[1744628834490,6.48e-06,1679.4,1679.3,7.30376]
[1744628834793,6.48e-06,1679.4,1679.3,13.8121256]
[1744628835096,6.48e-06,1679.4,1679.3,15.78884516]
[1744628835242,6.48e-06,1679.4,1679.3,12.28047956]
[1744628835557,6.48e-06,1679.4,1679.3,16.24001227]
[1744628836177,1.1995239,1680.3,1680.1,5.95168]
[1744628837749,0.4055239,1680.3,1680.2,6.01118268]
[1744628837949,0.4055239,1680.3,1680.2,7.74314327]
[1744628838167,0.4055239,1680.3,1680.2,8.56174327]
[1744628839090,0.4055239,1680.3,1680.2,19.51574327]
[1744628839254,3.9e-06,1680.3,1680.2,19.51574327]
[1744628839449,3.9e-06,1680.4,1680.3,10.31991]
[1744628839663,5.99743,1681.4,1680.8,0.7577]
[1744628839970,5.94789,1681.3,1680.9,5.94901]
[1744628840165,0.05,1681.4,1680.4,6.70865]
[1744628840482,0.05,1681.4,1680.7,5.94976]
[1744628840483,5.94865,1681.1,1680.7,5.94976]
[1744628840649,5.94945,1680.9,1680.5,5.95046]
[1744628840855,5.94945,1680.9,1680.5,11.90092]
[1744628841384,0.751,1681.2,1680.9,5.94887]
[1744628841686,0.751,1681.2,1681.0,5.94876]
[1744628841883,0.05,1681.4,1680.9,0.7577]
[1744628842075,0.05,1681.4,1681.3,5.94777]
[1744628843256,0.05,1681.4,1681.3,7.137345]
[1744628843676,0.05,1681.4,1681.3,7.964445]
[1744628844353,11.43313732,1682.0,1681.7,5.94603]
[1744628844354,0.4055239,1682.0,1681.7,5.94603]
[1744628844569,0.4055239,1682.0,1681.8,5.94588]
[1744628844772,0.4055239,1682.0,1681.8,5.94587]
[1744628844978,0.4055239,1682.0,1681.6,5.94655]
[1744628845175,0.4055239,1682.0,1681.4,5.9471]
[1744628845360,6.3508239,1682.0,1681.6,5.94651]
[1744628845561,3.7869,1681.9,1681.4,5.94725]
[1744628845777,5.94603,1681.8,1681.4,5.94725]
[1744628845972,9.73258,1681.9,1681.2,5.94809]
[1744628846173,0.7869,1681.9,1681.2,0.55]
[1744628846375,3.0,1681.8,1681.4,5.94742]
[1744628846566,3.0,1681.8,1681.2,1.67115155]
[1744628846567,1.20614239,1681.9,1681.5,5.94675]
[1744628846762,7.15180239,1681.9,1681.5,5.94675]
[1744628846968,5.94603,1681.8,1681.4,11.89464]
[1744628847162,6.66121024,1681.8,1681.4,11.89453]
[1744628847365,1.20614239,1681.9,1681.7,5.94635]
[1744628847576,5.94604,1681.8,1681.4,13.33222]
[1744628847888,5.94604,1681.8,1681.4,19.2795]
[1744628848055,7.15183239,1681.9,1681.4,7.385]
[1744628848261,1.20614239,1681.9,1681.6,5.94649]
[1744628848461,0.7869,1681.9,1681.6,5.94649]
[1744628850581,2.09524739,1681.9,1681.6,5.94671]
[1744628850779,0.4055239,1682.0,1681.7,5.94615]
[1744628851114,0.4055239,1682.0,1681.7,5.94626]
[1744628851405,0.4055239,1682.0,1681.4,7.385]
[1744628851608,0.4055239,1682.0,1681.5,0.7385]
[1744628851761,0.4055239,1682.0,1681.7,5.94623]
[1744628851962,0.4055239,1682.0,1681.8,5.94577]
[1744628852158,0.4055239,1682.0,1681.9,5.94565]
[1744628852413,3.9e-06,1682.0,1681.9,21.16438553]
[1744628852563,3.9e-06,1682.0,1681.9,24.46998608]
[1744628852959,0.05,1682.4,1681.9,24.46998608]
[1744628853162,1e-05,1682.5,1682.4,6.49388]
[1744628853388,1e-05,1682.5,1682.4,13.87588]
[1744628853596,1e-05,1682.5,1682.4,13.32588]
[1744628853804,1e-05,1682.5,1682.4,13.87588]
[1744628854710,1e-05,1682.5,1682.4,15.936082]
[1744628855506,1e-05,1682.5,1682.4,19.3868398]
[1744628855666,0.7557,1683.3,1683.1,5.94128]
[1744628855859,0.7557,1683.3,1682.4,13.6748598]
[1744628856096,6.69646,1683.3,1682.9,5.94209]
[1744628856306,0.7557,1683.3,1683.1,5.94124]
[1744628856522,1e-05,1683.4,1683.3,5.94071]
[1744628857012,1e-05,1683.4,1683.3,6.49071]
[1744628857308,1e-05,1683.4,1683.3,15.895772]
[1744628858075,1e-05,1683.4,1683.3,18.895772]
[1744628858264,1e-05,1683.4,1683.3,6.72261]
[1744628858468,1e-05,1683.4,1683.3,14.64961]
[1744628858688,1e-05,1683.4,1683.3,15.08775049]
[1744628858880,1e-05,1683.4,1683.3,18.08775049]
[1744628859415,7.18e-06,1684.8,1684.6,5.93612]
[1744628859617,3e-06,1685.0,1684.9,5.93507]
[1744628859776,3e-06,1685.0,1684.9,6.54440172]
[1744628860166,3e-06,1685.0,1684.7,6.71767]
[1744628860307,0.05,1685.4,1683.4,8.08277505]
[1744628860308,0.05,1685.4,1684.3,9.44021553]
[1744628860468,0.05,1685.4,1685.3,5.93366]
[1744628860674,0.05,1685.4,1684.9,9.43789553]
[1744628860675,0.05,1685.4,1684.9,5.93483]
[1744628860916,0.05,1685.4,1685.3,5.93366]
[1744628861619,0.05,1685.4,1685.3,5.9929795]
[1744628861775,0.05,1685.4,1685.2,6.71648]
[1744628861776,0.05,1685.4,1684.7,4.30973553]
[1744628861976,0.05,1685.4,1685.1,5.93409]
[1744628862205,5.93438,1685.1,1684.5,5.93613]
[1744628862374,5.9345,1685.1,1684.6,5.93583]
[1744628862719,0.7888,1685.3,1684.8,5.9353]
[1744628862720,5.93406,1685.2,1684.8,5.9353]
[1744628862923,9.72271,1685.3,1684.4,0.45559665]
[1744628862924,6.72266,1685.3,1684.4,0.45559665]
[1744628863234,5.93591,1684.7,1683.8,0.8152]
[1744628863388,6.72387,1684.9,1684.0,5.93818]
[1744628863717,3.7888,1684.9,1684.0,5.93817]
[1744628863902,5.93747,1684.3,1683.9,5.93831]
[1744628864104,5.93743,1684.3,1683.9,5.93831]
[1744628864407,5.93743,1684.3,1683.6,5.93965]
[1744628864408,3.7888,1684.3,1683.6,5.93965]
[1744628864719,0.7888,1684.3,1683.7,0.0593835]
[1744628865017,3.0,1684.1,1683.5,5.9398]
[1744628865197,0.893753,1684.1,1683.6,0.05938843]
[1744628865393,0.7888,1684.3,1683.4,7.371]
[1744628865595,0.12899441,1685.5,1684.0,3.50303553]
[1744628865797,0.12899441,1685.5,1683.7,0.8152]
[1744628865798,0.58227544,1685.5,1684.9,5.93483]
[1744628865997,0.12899441,1685.5,1684.5,5.93629]
[1744628866197,0.12899441,1685.5,1685.3,5.93366]
[1744628866429,0.12899441,1685.5,1685.3,5.99299689]
[1744628866615,0.12899441,1685.5,1685.3,5.93366]
[1744628867530,0.12899441,1685.5,1684.4,4.28673553]
[1744628867754,0.12899441,1685.5,1684.7,3.50303553]
[1744628867954,3.0,1685.3,1684.4,4.28673553]
[1744628868110,0.05,1685.4,1684.9,5.9349]
[1744628868316,0.05,1685.4,1685.2,5.93379]
[1744628868517,0.05,1685.4,1685.2,5.93393]
[1744628868819,0.05,1685.4,1685.3,5.9929966]
[1744628869017,0.05,1685.4,1684.9,5.93506]
[1744628869207,5.98335,1685.4,1685.0,5.93457]
[1744628869548,0.598335,1685.3,1684.8,7.642]
[1744628869767,5.93406,1685.2,1684.8,13.57731]
[1744628870138,0.05,1685.4,1685.0,11.86908]
[1744628870362,5.98332,1685.4,1685.0,5.93459]
[1744628870651,5.98347,1685.4,1685.0,5.93455]
[1744628870962,5.93385,1685.3,1684.9,11.86989]
[1744628871162,0.05,1685.4,1685.1,5.93418]
[1744628871363,0.05,1685.4,1685.3,5.93366]
[1744628871733,0.05,1685.4,1685.3,5.99298038]
[1744628872078,0.05,1685.4,1685.3,14.12466]
[1744628872230,0.00576814,1686.3,1686.2,6.76079]
[1744628872433,0.00576814,1686.3,1685.3,8.09185397]
[1744628872434,0.00576814,1686.3,1686.1,13.57169]
[1744628872630,0.82326814,1686.3,1685.5,5.93268]
[1744628872848,5.93118,1686.1,1685.2,5.93401]
[1744628873058,11.86424,1685.8,1685.4,5.93313]
[1744628873229,6.524358,1686.0,1685.2,5.93396]
[1744628873429,5.93198,1685.8,1685.4,5.93314]
[1744628873633,5.93607814,1686.3,1685.9,5.93138]
[1744628873837,5.93607814,1686.3,1685.6,9.43548553]
[1744628873838,0.00576814,1686.3,1685.6,5.93243]
[1744628874063,5.93053,1686.2,1685.8,5.93177]
[1744628874262,5.93053,1686.2,1685.5,8.736]
[1744628874263,5.93166,1685.9,1685.5,19.83457]
[1744628874435,5.93063,1686.2,1685.8,5.93162]
[1744628874636,5.93192,1685.8,1685.5,7.969]
[1744628874837,5.93188,1685.9,1685.5,5.93268]
[1744628875067,0.7535,1685.7,1684.7,0.7641]
[1744628875364,9.68582,1685.7,1685.3,5.93352]
[1744628875681,9.68582,1685.7,1684.9,5.93507]
[1744628875682,5.93291,1685.6,1684.9,5.93507]
[1744628875836,0.7535,1685.7,1685.0,5.9347]
[1744628876036,0.7535,1685.7,1685.4,5.93329]
[1744628876338,0.7535,1685.7,1684.9,3.0]
[1744628876339,5.93308,1685.5,1684.9,3.0]
[1744628876532,5.93321,1685.5,1685.0,5.93455]
[1744628876770,3.7535,1685.7,1684.9,5.93503]
[1744628876947,5.93379,1685.3,1684.9,11.8698]
[1744628877262,11.86779,1685.3,1684.9,5.93488]
[1744628877462,6.30797,1685.6,1685.1,11.86827]
[1744628877463,5.93309,1685.5,1685.1,11.86827]
[1744628877678,5.93308,1685.5,1685.1,5.93422]
[1744628877894,0.37535,1685.6,1684.7,5.93577]
[1744628878053,5.93346,1685.4,1685.0,5.9346]
[1744628878389,0.37535,1685.6,1685.1,0.05933945]
[1744628878541,0.37535,1685.6,1684.8,0.593577]
[1744628878542,5.93295,1685.5,1684.8,6.528977]
[1744628878743,5.93295,1685.5,1684.8,0.593577]
[1744628878945,3.50303553,1685.5,1684.6,5.93579]
[1744628879187,5.93469,1685.1,1684.7,11.87136]
[1744628879488,5.93647,1684.6,1684.1,5.93756]
[1744628879789,6.73191,1685.0,1684.0,0.7744]
[1744628879790,7.968,1684.9,1684.0,0.7744]
[1744628879996,0.7972,1685.0,1684.2,5.93749]
[1744628880144,0.7972,1685.0,1684.8,5.93519]
[1744628880353,6.73016,1685.4,1685.0,5.93458]
[1744628880584,6.73016,1685.4,1684.3,10.03382453]
[1744628880585,0.7966,1685.4,1684.8,5.93537]
[1744628880791,0.7966,1685.4,1684.7,11.87119]
[1744628880792,5.93457,1685.1,1684.7,11.87119]
[1744628880974,5.93457,1685.1,1684.8,5.93528]
[1744628881177,5.93457,1685.1,1684.7,5.93554]
[1744628881178,5.93379,1685.3,1684.9,5.9349]
[1744628881385,11.86776,1685.3,1684.9,5.9349]
[1744628881692,11.86776,1685.3,1684.9,11.86984]
[1744628881693,5.93379,1685.3,1684.9,11.86984]
[1744628881991,1.266372,1685.3,1684.6,7.54878]
[1744628882289,13.90107,1685.5,1684.7,5.93558]
[1744628882290,5.9345,1685.1,1684.7,5.93558]
[1744628882487,0.8123,1685.2,1684.7,0.18539312]
[1744628882686,13.90252,1685.1,1684.7,6.12111312]
[1744628882885,7.968,1685.1,1684.7,0.18539312]
[1744628883090,7.968,1685.1,1684.8,5.93509]
[1744628883290,5.93472,1685.0,1684.6,11.87201]
[1744628883460,9.43945,1685.1,1684.2,3.50303553]
[1744628883655,5.93555,1684.8,1684.4,5.93664]
[1744628883860,5.93612,1684.6,1684.5,0.18542079]
[1744628884061,6.76109,1684.7,1684.5,0.18542079]
[1744628884264,5.93612,1684.6,1684.5,0.18542079]
[1744628884462,5.93707,1684.4,1683.9,5.93853]
[1744628884658,5.9369,1684.4,1684.0,5.99742828]
[1744628884858,5.93647,1684.5,1684.1,5.93788]
[1744628885163,5.93667,1684.5,1684.0,5.93818]
[1744628885371,5.93666,1684.5,1684.1,5.93786]
[1744628885569,5.93718,1684.3,1683.3,0.8265]
[1744628885765,7.69031653,1684.5,1683.4,0.18550612]
[1744628885766,6.75834,1683.7,1683.4,0.18550612]
[1744628886103,5.93992,1683.6,1683.4,0.18550612]
[1744628886271,5.94,1683.5,1683.4,0.18550612]
[1744628886473,0.8187,1683.7,1683.5,5.93999]
[1744628886776,0.8187,1683.7,1683.2,5.9408]
[1744628886777,5.93999,1683.6,1683.2,5.9408]
[1744628887118,6.75812,1683.7,1683.2,5.94097]
[1744628887405,5.94005,1683.5,1683.3,0.18555075]
[1744628887772,5.94,1683.5,1683.4,0.18555075]
[1744628887972,11.87954,1683.6,1683.4,0.18555075]
[1744628888296,5.94035,1683.4,1683.3,0.18555075]
[1744628889030,5.94035,1683.4,1683.2,0.18555075]
[1744628889377,5.94071,1683.3,1683.2,0.18555075]
[1744628889585,5.94035,1683.4,1683.2,0.18555075]
[1744628890029,0.8187,1683.7,1683.2,0.86265415]
[1744628890177,46.272,1684.1,1683.5,5.93973]
[1744628890178,11.87766,1683.9,1683.5,5.93973]
[1744628890729,0.7865,1684.0,1683.7,5.93897]
[1744628890891,0.7865,1684.0,1683.5,5.93969]
[1744628890892,6.72496,1684.0,1683.5,5.93969]
[1744628891092,0.7865,1684.0,1683.7,5.93902]
[1744628891498,6.72484,1684.0,1683.7,5.93902]
[1744628891717,13.90891,1684.1,1683.7,1.20641273]
[1744628891926,5.93849,1684.0,1683.6,5.9396]
[1744628892128,5.93895,1683.8,1683.5,5.93994]
[1744628892430,5.93895,1683.8,1683.7,0.18550906]
[1744628892638,5.94007,1683.5,1683.1,5.99136]
[1744628892842,0.8213,1683.8,1683.1,0.05]
[1744628893043,0.8213,1683.8,1683.2,0.1855553]
[1744628893345,5.94018,1683.5,1683.2,6.1266153]
[1744628893647,11.88028,1683.5,1683.2,1.21180053]
[1744628893829,5.93948,1683.7,1683.2,5.94084]
[1744628894032,9.76047,1683.8,1683.1,0.05]
[1744628894349,5.93965,1683.6,1683.1,0.05]
[1744628894559,11.87961,1683.6,1683.2,5.94093]
[1744628894708,3.8213,1683.8,1683.4,5.94011]
[1744628894709,0.8213,1683.8,1683.4,5.94011]
[1744628895109,0.8213,1683.8,1683.2,1.19323]
[1744628895304,5.93991,1683.6,1683.2,5.94093]
[1744628895610,5.94001,1683.5,1683.1,5.9913]
[1744628895942,5.94013,1683.5,1683.1,5.99119]
[1744628896122,5.93968,1683.6,1683.2,5.94079]
[1744628896312,5.93968,1683.6,1683.2,12.480819]
[1744628896708,5.93968,1683.6,1683.3,5.94058]
[1744628897039,5.93931,1683.7,1683.3,11.9405489]
[1744628897337,6.7603,1683.8,1683.4,5.94018]
[1744628897636,11.87823,1683.8,1683.4,11.88036]
[1744628897857,3.8288,1684.1,1683.7,5.9392]
[1744628897858,6.76674,1684.1,1683.7,5.9392]
[1744628898142,6.76673,1684.1,1683.7,11.87813]
[1744628898309,6.76673,1684.1,1683.8,5.9389]
[1744628898510,12.70487,1684.1,1683.7,5.93898]
[1744628899010,2.099287,1684.1,1683.4,2.00997589]
[1744628899211,5.94016,1683.5,1683.2,0.599079]
[1744628899513,5.94088,1683.3,1683.1,0.05]
[1744628899836,11.88187,1683.3,1683.1,0.05]
[1744628900011,5.94106,1683.2,1683.1,0.05]
[1744628900427,6.76127456,1683.2,1683.1,0.05]
[1744628900652,7.58627456,1683.2,1683.1,0.05]
[1744628900860,10.58627456,1683.2,1683.1,0.05]
[1744628901154,5.9437,1682.5,1682.1,5.99491]
[1744628901352,5.9437,1682.5,1682.1,7.265144]
[1744628901653,0.7957,1682.7,1682.1,7.265144]
[1744628901654,5.94319,1682.6,1682.2,6.00399959]
[1744628901860,0.7957,1682.7,1682.1,7.265144]
[1744628902165,5.94406,1682.4,1682.1,1.320314]
[1744628902382,6.7386,1682.7,1682.1,1.320314]
[1744628902383,5.94443,1682.3,1682.1,1.320314]
[1744628902666,5.94393,1682.4,1682.1,0.05]
[1744628902870,5.94459,1682.2,1682.1,0.05]
[1744628903175,6.75829,1682.2,1682.1,0.05]
[1744628903473,5.94393,1682.4,1682.1,0.05]
[1744628903650,5.94395,1682.4,1682.1,5.9949]
[1744628903957,6.75726,1682.5,1682.1,0.05]
[1744628904161,0.8137,1682.5,1682.2,5.94444]
[1744628904371,8.258,1682.6,1682.2,5.94439]
[1744628904660,5.94319,1682.6,1682.2,11.88882]
[1744628904831,5.94294,1682.7,1682.2,1.275122]
[1744628905028,5.94289,1682.7,1682.2,5.94455]
[1744628905352,5.94346,1682.6,1682.2,5.94445]
[1744628905681,5.94304,1682.7,1682.2,5.94445]
[1744628905682,5.94304,1682.7,1682.3,5.94423]
[1744628905838,15.01659,1682.8,1682.2,0.05943893]
[1744628906044,5.944,1682.4,1682.1,0.05]
[1744628906242,10.344587,1682.8,1682.1,0.10944069]
[1744628906477,5.94334,1682.6,1682.2,5.94436]
[1744628906675,5.94334,1682.6,1682.2,11.88876]
[1744628906857,15.01679,1682.8,1682.4,5.94377]
[1744628907183,9.0741,1682.8,1682.4,1.188801]
[1744628907366,15.01668,1682.8,1682.4,5.94375]
[1744628907570,20.95935,1682.8,1682.4,5.94375]
[1744628907883,5.94282,1682.7,1682.3,0.8079]
[1744628908187,6.75757,1682.8,1682.1,0.05]
[1744628908388,11.88453,1682.9,1682.5,5.9434]
[1744628908546,5.94247,1682.8,1682.5,5.9434]
[1744628908742,11.88514,1682.8,1682.4,5.94384]
[1744628908941,5.94247,1682.8,1682.4,13.076211]
[1744628909141,5.94247,1682.8,1682.5,5.94343]
[1744628909383,3.7799,1683.1,1682.7,5.9427]
[1744628909384,9.7216,1683.1,1682.7,5.9427]
[1744628909586,3.7799,1683.1,1682.5,5.94349]
[1744628909884,5.94246,1682.9,1682.5,5.94338]
[1744628910190,5.94183,1683.0,1682.6,12.480448]
[1744628910486,9.72147,1683.1,1682.7,5.94264]
[1744628910904,8.259,1683.2,1682.7,5.94282]
[1744628911042,5.94155,1683.1,1682.8,0.594282]
[1744628911383,5.94233,1682.9,1682.6,0.594338]
[1744628911543,5.94164,1683.1,1682.8,5.94246]
[1744628911888,8.26,1683.3,1683.0,11.88339]
[1744628912046,8.26,1683.3,1683.1,5.94128]
[1744628912380,5.94044,1683.4,1683.1,7.129578]
[1744628912568,11.88039,1683.5,1683.1,13.070828]
[1744628912777,53.03022,1683.6,1683.2,7.2479328]
[1744628912972,53.03022,1683.6,1683.2,6.00025888]
[1744628913145,5.9402,1683.5,1683.2,5.94102]
[1744628913336,47.0905,1683.6,1683.2,5.94105]
[1744628913580,5.93871,1683.9,1683.5,5.93977]
[1744628913887,5.93826,1684.0,1683.6,5.9395]
[1744628914189,11.87683,1684.0,1683.6,6.53345]
[1744628914490,5.93831,1684.0,1683.6,6.53325]
[1744628914852,0.8235,1684.1,1683.6,6.53325]
[1744628914853,0.8235,1684.1,1683.8,5.93877]
[1744628915056,5.93802,1684.1,1683.7,5.93918]
[1744628915290,5.93802,1684.1,1683.7,11.87833]
[1744628915490,5.93802,1684.1,1683.8,1.187833]
[1744628915795,5.93802,1684.1,1683.6,0.59395]
[1744628915796,5.93879,1683.9,1683.6,0.59395]
[1744628915998,5.9393,1683.7,1683.3,5.9406]
[1744628916292,5.9385,1684.0,1683.6,5.93953]
[1744628916581,14.9625,1684.1,1683.4,5.9403]
[1744628916784,20.90063,1684.1,1683.7,11.87827]
[1744628916940,14.9625,1684.1,1683.8,1.187827]
[1744628917141,14.9625,1684.1,1683.7,5.93912]
[1744628917486,6.70343,1684.1,1683.7,11.87831]
[1744628917687,14.19669,1684.2,1683.8,5.93881]
[1744628917887,5.93839,1684.0,1683.7,0.8113]
[1744628918388,5.93839,1684.0,1683.5,5.93997]
[1744628918389,5.94002,1683.5,1683.2,6.74756]
[1744628918684,5.93906,1683.8,1683.5,5.93982]
[1744628918883,5.93906,1683.8,1683.2,6.7475]
[1744628918884,6.532159,1684.0,1683.6,5.93943]
[1744628919044,5.93861,1683.9,1683.6,5.93943]
[1744628919244,11.87685,1684.0,1683.6,11.87893]
[1744628919549,5.93905,1683.8,1683.5,5.93987]
[1744628919793,5.93905,1683.8,1683.4,5.94034]
[1744628919994,5.93968,1683.6,1683.2,6.74759]
[1744628920147,5.93968,1683.6,1683.2,12.68854]
[1744628920349,5.93968,1683.6,1683.3,0.18555542]
[1744628920688,11.88055,1683.5,1683.1,11.88264]
[1744628920889,5.94023,1683.5,1683.1,5.94128]
[1744628921195,5.94101,1683.3,1683.0,0.8149]
[1744628921351,5.94144,1683.1,1682.7,6.7577]
[1744628921557,5.94144,1683.1,1682.7,6.75759]
[1744628921751,5.94178,1683.0,1682.8,0.18560767]
[1744628922264,5.94224,1682.9,1682.6,5.9431]
[1744628922463,5.94183,1683.0,1682.4,9.0729]
[1744628922665,5.94073,1683.3,1682.2,5.94439]
[1744628922666,5.94318,1682.6,1682.2,5.94439]
[1744628922999,0.775,1682.7,1682.3,0.18566182]
[1744628923154,0.775,1682.7,1682.4,5.94368]
[1744628923592,0.775,1682.7,1682.3,6.12978182]
[1744628923897,0.775,1682.7,1682.4,0.18566182]
[1744628923898,6.71796,1682.7,1682.4,0.18566182]
[1744628924206,5.94353,1682.5,1682.4,0.18566182]
[1744628924491,5.94366,1682.5,1682.1,6.8097]
[1744628924706,5.94366,1682.5,1682.2,5.94458]
[1744628924850,5.94318,1682.6,1682.2,6.13024621]
[1744628925050,5.94355,1682.5,1682.2,0.18567621]
[1744628925250,5.94354,1682.5,1682.1,6.80971]
[1744628925693,5.94401,1682.4,1682.1,6.80971]
[1744628925994,5.9445,1682.3,1682.1,0.05]
[1744628926199,5.94459,1682.2,1682.1,0.05]
[1744628927783,5.94439,1682.3,1682.1,0.05]
[1744628927985,5.94459,1682.2,1682.1,0.05]
[1744628932793,5.94459,1682.2,1682.1,1e-05]
[1744628932794,9.70739,1682.2,1682.1,1e-05]
[1744628933782,6.70739,1682.2,1682.1,1e-05]
[1744628934309,5.94319,1682.6,1682.1,1e-05]
[1744628934310,0.8295,1682.6,1682.1,1e-05]
[1744628934476,5.94408,1682.4,1682.1,1e-05]
[1744628934681,11.88814,1682.4,1682.1,1e-05]
[1744628934910,5.94405,1682.4,1682.1,5.94491]
[1744628935097,11.88823,1682.4,1682.1,1e-05]
[1744628935303,5.94405,1682.4,1682.1,1e-05]
[1744628935499,5.94258,1682.8,1682.2,0.7884]
[1744628935717,5.94287,1682.7,1682.4,5.94387]
[1744628935887,5.94258,1682.8,1682.4,5.94387]
[1744628935888,5.94258,1682.8,1682.5,5.94338]
[1744628936083,5.94286,1682.7,1682.3,5.94417]
[1744628936283,11.88599,1682.7,1682.3,5.94417]
[1744628936483,11.88599,1682.7,1682.3,11.88825]
[1744628936684,5.94177,1683.0,1682.2,0.7884]
[1744628936685,5.94177,1683.0,1682.2,6.73291]
[1744628936979,5.94284,1682.7,1682.3,5.94405]
[1744628937183,12.68016,1682.8,1682.4,5.94383]
[1744628937512,5.94247,1682.8,1682.5,5.94344]
[1744628937919,5.94218,1682.9,1682.5,5.94344]
[1744628938093,8.94155,1683.1,1682.5,6.537844]
[1744628938303,5.94108,1683.2,1682.6,6.70575]
[1744628938508,11.88235,1683.2,1682.8,5.94232]
[1744628938691,5.94108,1683.2,1682.6,6.70601]